bitfinex/quotes_ETHUSD_20240714
["timestamp","ask_amount","ask_price","bid_price","bid_amount"]
[1720992388211,2.4878,3245.4,3244.9,1.07200335]
[1720992388408,2.4878,3245.4,3244.7,0.63237293]
[1720992388652,2.4878,3245.4,3244.7,1.70439589]
[1720992388811,2.4878,3245.4,3244.8,1.07202296]
[1720992389012,2.4878,3245.4,3244.9,1.07202296]
[1720992389224,2.4878,3245.4,3244.6,0.63237293]
[1720992389445,1.5,3245.3,3244.6,1.70444528]
[1720992389752,2.4878,3245.4,3244.7,1.07207235]
[1720992389913,2.4878,3245.4,3244.5,0.63237293]
[1720992390115,2.4878,3245.4,3244.5,1.70448047]
[1720992391953,2.4878,3245.4,3244.6,1.07210141]
[1720992392152,2.4878,3245.4,3244.7,1.07210141]
[1720992392316,2.4878,3245.4,3244.5,0.63237293]
[1720992392641,0.1149281,3245.5,3244.7,0.63237293]
[1720992393080,0.1149281,3245.5,3244.8,0.63237293]
[1720992393251,0.1149281,3245.5,3244.8,1.70447317]
[1720992393851,0.1149281,3245.5,3244.9,1.07203054]
[1720992394153,0.1149281,3245.5,3244.7,0.63237293]
[1720992394542,0.1149281,3245.5,3244.3,4.91963]
[1720992394742,0.1149281,3245.5,3244.7,0.63050703]
[1720992395269,0.1149281,3245.5,3244.7,1.70252353]
[1720992395433,0.1149281,3245.5,3244.8,1.0720165]
[1720992395636,0.1149281,3245.5,3244.9,1.0720165]
[1720992395833,0.1149281,3245.5,3244.7,0.63050703]
[1720992396137,0.1149281,3245.5,3244.4,0.63050703]
[1720992396342,0.1149281,3245.5,3244.4,1.70257998]
[1720992396544,0.1149281,3245.5,3244.5,1.07207295]
[1720992396774,0.1149281,3245.5,3244.3,0.63050703]
[1720992396975,0.1149281,3245.5,3244.3,1.70262373]
[1720992397177,0.1149281,3245.5,3244.4,1.70261725]
[1720992397338,0.1149281,3245.5,3244.5,1.07211022]
[1720992397545,0.1149281,3245.5,3244.6,1.07210129]
[1720992397890,0.1149281,3245.5,3244.4,0.63050703]
[1720992398378,0.1149281,3245.5,3244.5,1.07208851]
[1720992398557,0.1149281,3245.5,3244.3,0.63050703]
[1720992399251,1.6149281,3245.5,3244.3,1.70262319]
[1720992399459,1.6149281,3245.5,3244.4,1.07211616]
[1720992399699,1.6149281,3245.5,3244.2,2.13050703]
[1720992399878,1.6149281,3245.5,3244.3,1.07211516]
[1720992400048,0.1149281,3245.5,3244.4,1.07212345]
[1720992400249,0.1149281,3245.5,3244.9,1.7]
[1720992400452,2.4769,3245.9,3245.0,1.07194882]
[1720992400672,2.4769,3245.9,3244.8,0.63007781]
[1720992400952,2.4769,3245.9,3244.9,0.63007781]
[1720992401171,2.4769,3245.9,3244.9,1.70197927]
[1720992401377,2.4769,3245.9,3245.0,1.07190146]
[1720992401591,2.4769,3245.9,3244.8,0.63007781]
[1720992401751,2.4769,3245.9,3244.9,1.70198167]
[1720992401953,2.4769,3245.9,3245.0,1.07190386]
[1720992402260,2.4769,3245.9,3244.9,0.63007781]
[1720992402261,2.4769,3245.9,3245.1,1.70198167]
[1720992402466,2.4769,3245.9,3245.2,1.07190386]
[1720992402694,2.4769,3245.9,3245.0,0.63007781]
[1720992402860,2.4769,3245.9,3244.9,0.63007781]
[1720992403070,2.4769,3245.9,3244.9,1.70189852]
[1720992403288,2.4769,3245.9,3245.0,1.07182071]
[1720992403473,2.4769,3245.9,3245.1,1.07183332]
[1720992403654,2.4769,3245.9,3244.9,0.63007781]
[1720992404886,2.4769,3245.9,3245.0,1.0718385]
[1720992405078,2.4769,3245.9,3244.8,0.63007781]
[1720992406293,1.5,3245.8,3244.9,1.07185386]
[1720992406459,1.5,3245.8,3244.7,0.63007781]
[1720992406653,1.5,3245.8,3244.6,0.63007781]
[1720992406859,1.5,3245.8,3244.1,5.36231706]
[1720992406860,1.5,3245.3,3244.1,0.63007781]
[1720992407163,0.02719603,3245.2,3244.1,1.39446093]
[1720992407400,0.02719603,3245.2,3244.2,1.07208753]
[1720992407607,0.02719603,3245.2,3244.3,1.07208753]
[1720992407752,1.843,3245.6,3244.4,1.0720593]
[1720992407955,0.02726367,3245.5,3244.2,0.63007781]
[1720992408364,0.02726367,3245.5,3244.2,1.70212901]
[1720992408571,1.843,3245.6,3244.3,1.70212901]
[1720992408893,4.5,3245.8,3244.4,1.0720512]
[1720992409064,4.5,3245.8,3244.2,0.63007781]
[1720992409267,4.5,3245.8,3244.2,1.70211011]
[1720992409478,3.0,3245.8,3244.3,0.63007781]
[1720992409683,5.4769,3245.9,3244.3,0.63007781]
[1720992409899,0.02719975,3245.7,3244.3,1.70197407]
[1720992410079,4.52720327,3245.8,3244.4,1.70197407]
[1720992410276,4.5,3245.8,3244.5,1.07202218]
[1720992410477,0.02719806,3245.7,3244.3,0.62995189]
[1720992411215,0.02719806,3245.7,3244.4,1.70198918]
[1720992411368,0.02719806,3245.7,3244.5,1.07203729]
[1720992411686,0.02719806,3245.7,3244.6,1.07203729]
[1720992411906,0.02719806,3245.7,3244.4,0.62995189]
[1720992412313,0.02719806,3245.7,3244.5,1.70197522]
[1720992412488,0.02719806,3245.7,3244.6,1.07202333]
[1720992412687,0.02719806,3245.7,3244.4,0.62995189]
[1720992413118,0.02719806,3245.7,3244.5,1.07206418]
[1720992413314,0.02719806,3245.7,3244.6,1.07206418]
[1720992413484,0.02719806,3245.7,3244.4,0.6313679]
[1720992414486,1.5,3245.7,3244.4,0.6313679]
[1720992414924,0.02709828,3245.6,3244.4,0.6313679]
[1720992415186,0.02709828,3245.6,3244.5,1.5]
[1720992415410,0.02709828,3245.6,3244.6,1.07206446]
[1720992415633,0.02709828,3245.6,3244.4,0.6313679]
[1720992416299,0.02709828,3245.6,3244.5,1.70369676]
[1720992416499,0.02709828,3245.6,3244.6,1.07206444]
[1720992416713,0.02709828,3245.6,3244.7,1.07206444]
[1720992416898,1.5,3245.7,3244.5,0.63163232]
[1720992417429,2.4769,3245.9,3244.6,0.06162329]
[1720992417430,0.02711146,3245.6,3244.6,0.06162329]
[1720992417649,0.02711146,3245.6,3244.7,1.07206197]
[1720992417799,1.5,3245.7,3244.7,1.07206197]
[1720992417800,2.4769,3245.9,3244.7,1.1336849]
[1720992418133,3.9769,3245.9,3244.5,0.63163232]
[1720992418324,0.02713301,3245.8,3244.5,0.63163232]
[1720992419520,3.9769,3245.9,3244.5,0.63163232]
[1720992419897,3.9769,3245.9,3244.6,0.63163232]
[1720992420100,1.5,3245.7,3244.5,0.63163232]
[1720992420304,0.02711344,3245.6,3244.5,0.63163232]
[1720992420635,1.5,3245.7,3244.5,0.63163232]
[1720992420854,1.5,3245.7,3244.5,2.13163232]
[1720992421014,0.0271179,3245.6,3244.6,1.0720538]
[1720992421224,0.0271179,3245.6,3244.6,1.70368612]
[1720992421418,4.55889,3245.9,3244.6,1.70368612]
[1720992421617,1.5,3245.7,3244.6,1.70368612]
[1720992421834,1.5,3245.7,3244.5,1.5]
[1720992422139,1.5,3245.7,3244.6,1.07207285]
[1720992422140,1.5,3245.0,3244.6,1.07207285]
[1720992422347,2.3047,3245.4,3244.3,0.95488933]
[1720992422348,1.5,3245.3,3244.3,0.95488933]
[1720992422543,1.5,3245.3,3244.4,1.07217652]
[1720992423618,1.5,3245.3,3244.3,0.95488933]
[1720992423819,1.5,3245.3,3244.4,1.0721745]
[1720992424741,2.3047,3245.4,3244.4,1.0721745]
[1720992426169,2.3047,3245.4,3244.4,1.70469623]
[1720992426979,1.5,3245.2,3244.4,1.0721745]
[1720992427183,0.02703878,3245.1,3244.5,1.0721745]
[1720992427487,0.02703878,3245.1,3244.3,0.95488933]
[1720992427683,1.5,3244.5,3244.4,1.07219232]
[1720992427987,2.3047,3244.4,3243.9,2.24063101]
[1720992428142,2.66102863,3244.4,3244.0,1.07232752]
[1720992428475,2.66102863,3244.4,3243.6,0.63337208]
[1720992428476,0.35632863,3244.3,3243.6,0.63337208]
[1720992428677,0.35632863,3244.3,3243.6,1.70582144]
[1720992428861,0.35632863,3244.2,3243.6,2.02829638]
[1720992429177,0.35632863,3244.2,3243.7,1.07245548]
[1720992429974,2.3047,3244.4,3243.7,1.13410597]
[1720992430280,0.35632863,3245.1,3243.7,1.13410597]
[1720992430281,2.66102863,3245.1,3244.0,0.63337208]
[1720992430456,2.66102863,3245.1,3244.3,0.63337208]
[1720992430975,2.66102863,3245.1,3244.3,1.70570619]
[1720992431157,2.66102863,3245.1,3244.4,1.07233411]
[1720992431365,0.35632863,3244.7,3244.5,1.07233411]
[1720992431546,2.66102863,3245.1,3244.2,0.63337208]
[1720992431869,2.66102863,3245.1,3244.1,1.60836382]
[1720992431870,2.66102863,3245.1,3244.1,0.63337208]
[1720992432075,0.35632863,3244.9,3244.2,1.07226694]
[1720992432262,2.66102863,3245.1,3244.2,1.07226694]
[1720992432447,0.35632863,3244.7,3244.2,1.07226694]
[1720992432642,2.66102863,3245.1,3244.2,1.07226694]
[1720992433288,0.35632863,3244.6,3244.2,1.07226694]
[1720992433442,0.35632863,3244.9,3244.2,1.07226694]
[1720992433647,2.66102863,3245.1,3244.2,1.07226694]
[1720992433849,2.66102863,3245.1,3244.3,1.07226694]
[1720992434087,2.66102863,3245.1,3244.4,1.07226694]
[1720992434256,2.66102863,3245.1,3244.2,0.63298701]
[1720992434484,2.66102863,3245.1,3244.2,1.07224781]
[1720992434806,2.66102863,3245.1,3244.3,1.07224725]
[1720992434964,2.66102863,3245.1,3244.2,0.63282304]
[1720992435167,2.66102863,3245.1,3244.2,1.70506655]
[1720992437767,2.66102863,3245.1,3244.2,0.63282304]
[1720992438282,2.66102863,3245.1,3244.2,1.7050594]
[1720992439109,2.3047,3245.1,3244.2,1.7050594]
[1720992439311,2.3047,3245.1,3244.3,1.7050594]
[1720992440220,2.3047,3245.1,3244.4,1.07223636]
[1720992440520,0.35632863,3244.8,3244.2,0.63282304]
[1720992440678,0.35632863,3244.8,3244.2,1.7050585]
[1720992441214,0.35632863,3244.8,3244.3,1.07224156]
[1720992441417,0.35632863,3244.8,3244.4,1.07224156]
[1720992441713,0.35632863,3244.8,3244.2,0.63259457]
[1720992441915,2.2808,3244.7,3244.2,1.70483597]
[1720992442120,1.63745285,3244.7,3244.2,1.70483597]
[1720992444081,1.63745285,3244.7,3244.3,1.07224364]
[1720992444286,1.63745285,3244.7,3244.4,1.07224345]
[1720992444585,1.63745285,3244.7,3244.1,0.63259457]
[1720992444817,1.63745285,3244.7,3244.2,1.70486892]
[1720992444983,1.63745285,3244.7,3244.3,1.70486892]
[1720992445327,1.63745285,3244.7,3244.4,1.07227435]
[1720992445491,1.63745285,3244.7,3244.5,1.07227435]
[1720992445717,0.35632863,3245.1,3244.3,0.63259457]
[1720992446320,0.35632863,3245.1,3244.3,1.70481863]
[1720992446522,0.35632863,3245.1,3244.4,1.07222406]
[1720992446722,0.35632863,3244.9,3244.5,1.07222406]
[1720992446925,0.35632863,3244.9,3244.2,0.63259457]
[1720992447076,0.35632863,3244.9,3244.3,1.70483284]
[1720992447281,0.35632863,3244.9,3244.4,1.07223827]
[1720992447506,0.35632863,3244.9,3243.8,0.32240397]
[1720992447705,0.35632863,3244.9,3244.3,0.6325818]
[1720992448087,0.35632863,3244.9,3244.4,1.07223207]
[1720992448285,0.35632863,3244.9,3244.2,0.6325818]
[1720992448523,0.35632863,3244.9,3244.3,1.07225778]
[1720992450253,0.35632863,3244.9,3244.4,1.07225778]
[1720992450821,0.35632863,3244.9,3244.5,1.07225338]
[1720992451014,0.35632863,3244.9,3244.3,2.24096187]
[1720992451216,0.31999749,3244.9,3244.4,2.68063366]
[1720992451458,0.31999749,3244.9,3244.5,1.07225346]
[1720992451765,2.58449749,3244.8,3244.2,0.6325818]
[1720992451955,2.58449749,3244.8,3244.3,1.07230958]
[1720992452256,2.58449749,3244.8,3244.4,1.07230958]
[1720992452435,0.31999749,3244.5,3244.4,1.07230958]
[1720992452648,0.31999749,3244.7,3244.1,2.240962]
[1720992452821,0.31999749,3244.7,3244.2,2.6807287]
[1720992453147,0.31999749,3244.7,3244.3,1.0723485]
[1720992453347,0.31999749,3244.7,3244.4,1.0723485]
[1720992453815,0.31999749,3244.7,3244.3,1.60846134]
[1720992454016,0.31999749,3244.7,3244.4,1.07231906]
[1720992454536,0.31999749,3244.7,3244.3,1.07231906]
[1720992454738,0.31999749,3244.7,3244.2,1.60847859]
[1720992455083,0.31999749,3244.7,3244.1,0.6325818]
[1720992456273,0.31999749,3244.7,3244.3,1.07233991]
[1720992457361,0.31999749,3244.4,3244.3,1.07233991]
[1720992457771,2.67099749,3244.6,3244.3,1.07233991]
[1720992458230,0.31999749,3244.4,3244.3,1.07233991]
[1720992458431,0.31999749,3244.4,3244.1,0.6325818]
[1720992460147,0.31999749,3244.2,3244.1,0.6325818]
[1720992466275,2.59659749,3244.2,3244.1,0.6325818]
[1720992466584,3.04055724,3244.2,3244.1,0.6325818]
[1720992467746,3.04055724,3244.2,3243.9,0.9488727]
[1720992467747,0.31999749,3243.9,3243.2,0.6325818]
[1720992468184,0.31999749,3243.8,3243.2,0.6325818]
[1720992468687,0.31999749,3243.4,3243.2,0.6325818]
[1720992468880,2.2766,3243.3,3243.2,0.6325818]
[1720992470247,0.31999749,3243.4,3243.2,0.6325818]
[1720992470476,0.31999749,3243.7,3243.2,0.6325818]
[1720992471106,0.31999749,3243.5,3243.2,0.6325818]
[1720992471882,0.31999749,3243.3,3243.2,0.6325818]
[1720992472891,0.31999749,3243.3,3243.1,0.32255457]
[1720992474503,0.31999749,3243.3,3242.6,0.63344251]
[1720992474666,0.31999749,3243.3,3242.8,0.32258211]
[1720992476095,0.31999749,3242.9,3242.8,0.32258211]
[1720992476302,0.31999749,3242.5,3241.7,0.63344251]
[1720992476455,4.1926,3243.2,3241.6,0.63344251]
[1720992476456,0.31999749,3242.3,3241.6,0.63344251]
[1720992476660,0.31999749,3242.3,3241.6,0.32268392]
[1720992476993,0.31999749,3241.7,3241.6,0.32268392]
[1720992477579,2.66959749,3241.7,3241.6,0.32268392]
[1720992477774,0.31999749,3241.5,3240.7,0.63344251]
[1720992477986,2.66959749,3241.7,3240.9,0.32276555]
[1720992478314,0.31999749,3241.4,3240.9,0.32276555]
[1720992478669,0.31999749,3241.2,3240.9,0.32276555]
[1720992478874,2.3496,3241.7,3240.9,0.32276555]
[1720992478875,1e-08,3241.0,3240.9,0.32276555]
[1720992480023,2.3496,3241.7,3240.9,0.32276555]
[1720992480709,2.58456,3241.7,3240.9,0.32276555]
[1720992481008,1.843,3241.6,3240.1,0.63344251]
[1720992481208,1.843,3241.6,3240.2,0.32279872]
[1720992481711,1.843,3241.6,3240.3,1.07339807]
[1720992481945,1.843,3241.6,3240.2,0.32279872]
[1720992483754,2.26226,3241.6,3240.2,0.32279872]
[1720992483910,2.3496,3241.7,3240.2,0.32279872]
[1720992484111,2.3496,3241.7,3240.3,2.53061205]
[1720992484350,2.3471,3242.1,3240.5,2.46869]
[1720992484507,2.3471,3242.1,3240.7,2.46859]
[1720992484731,2.3471,3242.1,3240.8,2.53019673]
[1720992484956,1.843,3242.5,3240.8,2.4685]
[1720992485544,1.843,3242.5,3240.6,2.46867]
[1720992485745,1.843,3242.5,3240.7,1.07315838]
[1720992486290,2.3471,3242.6,3240.7,3.54170838]
[1720992486433,2.3471,3242.6,3241.0,2.3042]
[1720992486772,2.3471,3242.6,3241.1,1.0730212]
[1720992487071,2.3471,3242.6,3241.1,1.13471347]
[1720992487278,2.2589,3243.2,3241.9,2.3042]
[1720992487480,2.2589,3244.0,3242.0,2.4676]
[1720992487653,2.2589,3244.0,3241.9,5.47045725]
[1720992487861,2.2589,3244.0,3242.0,1.0727116]
[1720992488086,2.2589,3244.0,3242.0,3.5403016]
[1720992488386,2.71299717,3244.0,3242.1,3.5402216]
[1720992488690,1.5,3245.0,3242.0,2.46759]
[1720992488691,2.4175,3244.8,3242.9,2.46687]
[1720992488982,2.4175,3244.8,3243.0,2.46683]
[1720992489185,2.4175,3244.8,3243.1,1.07235615]
[1720992490197,2.4175,3244.8,3242.9,2.12952019]
[1720992490361,0.24175,3244.7,3242.7,3.16625725]
[1720992490555,0.24175,3244.7,3242.8,1.07246811]
[1720992490760,0.24175,3244.7,3242.7,3.16625725]
[1720992491554,0.24175,3244.7,3242.8,1.07252025]
[1720992494270,0.24175,3244.7,3242.9,1.07248861]
[1720992494583,0.265925,3244.6,3242.7,5.63877744]
[1720992494799,2.4175,3244.8,3242.8,1.07249725]
[1720992495383,4.2605,3244.8,3242.8,1.07249725]
[1720992495810,4.2605,3244.8,3242.9,2.46692]
[1720992496111,4.2605,3244.8,3243.0,2.57249725]
[1720992496283,4.2605,3244.8,3242.9,2.46692]
[1720992496284,2.4175,3244.8,3243.1,1.07249725]
[1720992496478,0.24175,3244.7,3243.0,1.5]
[1720992496806,0.24175,3244.7,3243.1,1.07243311]
[1720992497110,0.24175,3244.7,3243.4,1.5]
[1720992497417,0.24175,3244.7,3242.9,0.62893637]
[1720992497577,0.24175,3244.7,3242.9,1.70140369]
[1720992497776,0.265925,3244.6,3242.9,1.70140369]
[1720992498102,0.265925,3244.6,3243.0,1.07246732]
[1720992498304,0.265925,3244.6,3243.1,1.07246732]
[1720992498475,0.265925,3244.6,3242.9,0.62893637]
[1720992498807,0.265925,3244.6,3242.7,3.79519362]
[1720992499017,0.265925,3244.6,3242.8,1.0725236]
[1720992499184,2.3282,3244.5,3242.8,1.0725236]
[1720992499393,0.2594125,3244.4,3242.8,1.0725236]
[1720992500413,0.2594125,3244.4,3242.7,3.16625725]
[1720992500618,0.2594125,3244.4,3242.8,1.07257313]
[1720992503819,0.2594125,3244.4,3242.7,3.16625725]
[1720992503991,0.2594125,3244.4,3242.8,1.07254655]
[1720992504194,0.25876125,3244.3,3242.8,1.07254655]
[1720992507123,0.25876125,3244.3,3242.7,3.16625725]
[1720992507430,0.25876125,3244.3,3242.8,1.07254585]
[1720992509100,2.3282,3244.5,3243.0,1.843]
[1720992510424,2.3282,3244.5,3243.1,1.5]
[1720992511821,2.3282,3244.5,3243.3,1.5]
[1720992513502,2.3282,3244.5,3243.5,1.5]
[1720992514112,2.3282,3244.5,3243.0,1.843]
[1720992514313,2.56102,3244.5,3243.0,1.843]
[1720992514526,2.56102,3244.5,3243.1,1.5]
[1720992514734,2.56102,3244.5,3243.0,1.843]
[1720992515401,2.56102,3244.5,3242.7,3.16625725]
[1720992515607,2.47,3244.3,3242.4,2.90486207]
[1720992515929,2.47,3244.3,3242.3,0.95145516]
[1720992515930,2.47,3244.3,3242.5,1.07260683]
[1720992516097,2.47,3244.3,3242.3,3.85631723]
[1720992516298,2.47,3244.3,3242.5,2.90486207]
[1720992516742,2.47,3244.3,3242.3,0.95145516]
[1720992516908,0.5726102,3244.2,3242.5,2.90517002]
[1720992517109,0.5726102,3244.2,3242.4,1.5]
[1720992517110,2.47,3244.1,3242.4,1.5]
[1720992517318,2.47,3244.1,3242.6,2.90509543]
[1720992517934,2.47,3244.1,3242.8,1.5]
[1720992518946,2.47,3244.1,3242.4,1.5]
[1720992519244,0.247,3244.0,3242.7,2.90435208]
[1720992520140,0.247,3244.0,3242.5,1.5]
[1720992520742,0.247,3244.0,3242.7,1.5]
[1720992520953,0.247,3244.0,3242.5,1.5]
[1720992521107,2.47,3244.7,3242.5,1.5]
[1720992521310,2.47,3244.6,3242.5,1.5]
[1720992521614,2.47,3244.5,3242.3,0.95145516]
[1720992523553,2.47,3243.8,3242.3,0.95145516]
[1720992523754,2.47,3243.7,3242.3,0.62893637]
[1720992524047,3.017,3243.6,3242.3,0.62893637]
[1720992524545,2.47,3243.4,3242.3,0.62893637]
[1720992531199,2.47,3243.4,3242.1,0.95099261]
[1720992535395,2.47,3243.4,3242.1,0.62893637]
[1720992535603,2.47,3243.4,3242.2,1.843]
[1720992536401,2.47,3243.4,3242.3,3.31115372]
[1720992536694,2.47,3243.4,3242.4,2.68221735]
[1720992536858,2.47,3243.4,3242.5,1.07288694]
[1720992537462,2.47,3243.4,3242.3,2.23826678]
[1720992537700,2.47,3243.4,3242.4,1.07288282]
[1720992537865,2.47,3243.4,3242.5,1.07288031]
[1720992538073,2.47,3243.4,3242.3,2.23825684]
[1720992538279,2.47,3243.4,3242.3,1.70181584]
[1720992538475,2.47,3243.4,3242.4,1.07287947]
[1720992538800,2.717,3243.4,3242.5,1.07287947]
[1720992539001,2.4365,3243.2,3241.8,0.95101136]
[1720992539158,2.4365,3243.2,3241.9,1.07302812]
[1720992539502,3.00485,3243.2,3241.8,0.32207499]
[1720992539706,3.0,3243.1,3241.9,1.07304116]
[1720992539998,3.0,3243.1,3241.8,0.32207499]
[1720992539999,2.4365,3243.0,3241.8,0.32207499]
[1720992540306,2.4365,3243.0,3241.6,0.62893637]
[1720992540501,2.4365,3243.0,3241.7,1.07309265]
[1720992540658,2.4365,3243.0,3241.5,4.71761249]
[1720992540659,2.4365,3243.0,3241.5,2.16488746]
[1720992540863,2.4365,3243.0,3241.6,1.70598318]
[1720992541303,2.4365,3243.0,3241.7,1.07309229]
[1720992541508,2.4365,3243.0,3241.9,1.843]
[1720992543577,2.4365,3243.0,3242.0,1.07294564]
[1720992545867,2.4365,3243.0,3241.9,1.843]
[1720992546163,2.4365,3243.0,3242.3,1.843]
[1720992546411,2.4365,3243.0,3241.9,2.33298925]
[1720992546701,2.4365,3243.0,3242.3,1.843]
[1720992548807,2.4365,3243.0,3242.0,0.63298925]
[1720992548991,2.68015,3243.0,3241.8,0.63298925]
[1720992549178,2.68015,3243.0,3241.8,1.07297175]
[1720992549980,2.68015,3243.0,3241.9,1.07297926]
[1720992550319,2.68015,3243.0,3241.7,2.47598925]
[1720992550488,2.4365,3243.0,3241.8,1.07298329]
[1720992551209,2.4365,3243.0,3241.9,1.07298329]
[1720992551796,0.39103117,3244.3,3242.3,1.7]
[1720992551797,2.3385,3243.6,3242.3,1.7]
[1720992552099,2.3385,3243.6,3242.9,1.7]
[1720992552480,2.3385,3243.6,3242.9,5.043]
[1720992553391,2.3385,3243.6,3242.9,3.543]
[1720992554509,2.3385,3243.6,3242.6,1.843]
[1720992554711,2.3385,3243.6,3242.7,1.07271446]
[1720992555495,2.3385,3243.6,3242.7,1.70487267]
[1720992556047,2.3385,3243.6,3242.8,1.07271446]
[1720992556240,2.3385,3243.6,3242.9,1.07266113]
[1720992556400,2.3385,3243.6,3242.7,0.63260569]
[1720992556594,2.3385,3243.6,3242.7,1.07266653]
[1720992556595,2.57235,3243.6,3242.7,1.07266653]
[1720992556815,2.57235,3243.6,3242.6,1.843]
[1720992558132,2.57235,3243.6,3242.1,0.63260569]
[1720992558338,2.3734,3243.4,3242.2,1.843]
[1720992558636,2.3734,3243.4,3242.3,1.07290335]
[1720992558841,3.0,3243.5,3242.3,1.07290335]
[1720992558842,2.3734,3243.2,3242.3,1.07290335]
[1720992559002,2.3734,3243.2,3242.2,1.843]
[1720992559717,2.3734,3243.2,3242.3,1.07292729]
[1720992560456,1.7978,3246.1,3243.1,3.543]
[1720992560457,2.3734,3244.3,3243.1,3.543]
[1720992560631,2.3734,3244.3,3243.6,1.843]
[1720992561025,2.3734,3244.3,3243.1,3.94199663]
[1720992561356,2.61074,3244.3,3243.2,1.07258595]
[1720992562539,2.61074,3244.3,3243.3,1.07258361]
[1720992562736,2.61074,3244.3,3243.1,2.47560569]
[1720992562936,2.61074,3244.3,3243.2,1.07260374]
[1720992563469,2.61074,3244.3,3243.1,1.843]
[1720992563670,2.607674,3244.2,3243.1,1.843]
[1720992564556,2.3466,3244.0,3242.8,2.24148111]
[1720992564724,2.3466,3244.0,3242.9,1.07270678]
[1720992565262,2.3466,3244.0,3242.3,4.08448111]
[1720992565562,2.3466,3244.0,3242.4,1.07286008]
[1720992565865,3.0,3244.1,3242.3,1.843]
[1720992565866,2.3466,3243.8,3242.3,1.843]
[1720992566025,2.3466,3243.7,3242.4,1.07291464]
[1720992566231,2.3466,3243.7,3242.3,1.843]
[1720992567063,2.3466,3243.7,3242.4,1.072908]
[1720992568130,2.3466,3243.7,3242.3,1.843]
[1720992568331,2.3466,3243.5,3242.3,1.843]
[1720992568567,5.3466,3243.5,3242.3,1.843]
[1720992568740,3.0,3243.5,3242.1,2.24198231]
[1720992568944,2.3466,3243.4,3242.2,1.07297866]
[1720992569250,2.3466,3243.4,3242.1,1.843]
[1720992571242,2.3466,3243.4,3241.6,2.242191]
[1720992571243,2.3466,3243.4,3241.7,1.843]
[1720992571442,2.3466,3243.4,3241.8,1.07310011]
[1720992572281,2.3466,3243.4,3241.7,1.843]
[1720992572471,2.58126,3243.3,3241.7,1.843]
[1720992572779,2.3466,3243.3,3241.7,1.843]
[1720992574082,2.3466,3243.3,3241.3,2.47560569]
[1720992574275,2.3466,3243.3,3241.3,1.843]
[1720992574685,2.435,3243.2,3241.3,1.843]
[1720992574983,2.435,3243.0,3241.3,1.843]
[1720992575182,2.3035,3242.9,3241.3,1.843]
[1720992575547,2.3035,3242.8,3241.3,1.843]
[1720992576349,2.3035,3242.8,3240.9,9.123]
[1720992576682,2.3035,3242.8,3240.9,1.843]
[1720992576872,2.3035,3242.6,3240.5,1.843]
[1720992577071,2.3035,3242.4,3240.5,1.843]
[1720992577281,2.3035,3242.3,3240.5,1.843]
[1720992577673,2.3035,3241.3,3239.3,0.63260569]
[1720992577876,2.3035,3241.3,3238.8,0.63260569]
[1720992578104,2.76896703,3241.2,3239.0,0.32183471]
[1720992578386,1.61432901,3241.1,3238.8,1.843]
[1720992578585,2.76896703,3241.0,3238.8,1.843]
[1720992578771,2.3035,3240.8,3238.8,1.843]
[1720992579179,2.3035,3240.8,3237.8,0.94890853]
[1720992579180,2.76896703,3240.8,3238.4,1.843]
[1720992579477,5.0768967,3240.9,3238.4,1.843]
[1720992579478,2.3035,3240.3,3238.4,1.843]
[1720992579982,2.3035,3240.1,3237.3,2.13260569]
[1720992580158,2.3035,3240.1,3237.2,1.7]
[1720992580159,2.3035,3240.1,3238.2,1.843]
[1720992580362,2.3035,3239.9,3238.2,1.843]
[1720992580682,2.3035,3239.8,3237.4,0.32186797]
[1720992580893,2.3035,3239.8,3238.2,1.843]
[1720992581185,2.3035,3239.7,3238.2,1.843]
[1720992582403,2.3035,3239.5,3237.4,0.32186797]
[1720992582594,2.3035,3239.5,3236.7,4.164]
[1720992582750,2.3035,3239.5,3237.0,0.32150908]
[1720992582949,2.3035,3239.4,3237.2,2.464]
[1720992583952,2.3035,3239.2,3237.2,2.464]
[1720992584284,2.3035,3239.0,3237.0,0.32150908]
[1720992584789,2.3035,3238.9,3237.0,0.32150908]
[1720992584964,2.3035,3238.8,3237.0,0.32150908]
[1720992586052,2.3035,3238.8,3237.3,1.7]
[1720992586689,2.3035,3238.8,3237.1,1.7]
[1720992587280,2.83385,3238.8,3237.1,1.7]
[1720992587452,2.83385,3238.8,3237.0,0.32150908]
[1720992587453,3.0,3238.7,3237.0,0.32150908]
[1720992587651,3.0,3238.7,3237.1,0.55]
[1720992588356,3.0,3238.7,3237.0,0.32150908]
[1720992588357,2.3035,3238.6,3237.0,0.32150908]
[1720992592367,2.3035,3238.5,3237.0,0.32150908]
[1720992592568,2.3035,3238.4,3236.2,4.164]
[1720992592791,2.3035,3238.4,3236.2,4.48582366]
[1720992592792,2.3035,3238.3,3236.2,4.48582366]
[1720992593011,2.3035,3238.1,3236.2,2.02182366]
[1720992593181,2.3035,3237.9,3236.2,0.32182366]
[1720992593704,2.3035,3237.8,3236.2,0.32182366]
[1720992593906,2.3035,3237.7,3236.4,1.7]
[1720992594617,1.15699381,3237.7,3236.4,1.7]
[1720992594967,1.15699381,3237.7,3236.2,0.32179037]
[1720992595183,4.5,3238.5,3236.2,0.32179037]
[1720992595388,1.5,3238.3,3236.2,0.32179037]
[1720992595586,0.55,3238.2,3235.9,7.28]
[1720992596127,0.55,3238.2,3235.8,0.1149281]
[1720992596128,1.5,3238.0,3235.8,0.1149281]
[1720992596339,1.96546703,3238.0,3235.8,0.1149281]
[1720992596497,2.464,3237.4,3235.8,0.1149281]
[1720992597032,0.55,3237.3,3235.8,0.1149281]
[1720992597198,3.55,3237.3,3235.8,0.1149281]
[1720992597406,2.2685,3237.2,3235.8,0.1149281]
[1720992597641,3.0,3237.2,3235.8,0.1149281]
[1720992597927,2.8685,3237.1,3235.8,0.1149281]
[1720992598223,3.0,3237.0,3235.8,0.1149281]
[1720992600687,2.2685,3237.1,3236.2,1.7]
[1720992601122,2.3828,3237.4,3236.6,1.7]
[1720992601747,2.3828,3238.7,3236.6,1.7]
[1720992602046,2.3828,3238.7,3236.3,2.2844]
[1720992602047,2.3828,3238.7,3237.0,1.7]